bitfinex-derivatives/quotes_ETHF0:USTF0_20251021
["timestamp","ask_amount","ask_price","bid_price","bid_amount"]
[1761054063623,0.46182,3896.7,3896.3,0.46185]
[1761054063824,0.00242762,3897.0,3895.8,1.37983295]
[1761054064120,0.4618,3896.8,3896.4,0.46183]
[1761054064326,0.46182,3896.6,3896.3,0.46185]
[1761054064924,0.46186,3896.3,3896.0,0.46189]
[1761054065118,0.46186,3896.3,3896.1,0.46187]
[1761054065318,0.46186,3896.3,3895.9,9.523]
[1761054066031,1.15455,3896.6,3895.7,9.98092]
[1761054066231,1.15455,3896.6,3894.7,1.15509]
[1761054066232,1.1545,3896.8,3895.5,1.37983295]
[1761054066522,1.1545,3896.8,3894.7,3.46269843]
[1761054066523,0.46197,3895.3,3895.1,1.37983295]
[1761054066715,2.30912,3896.6,3894.3,1.37983295]
[1761054066716,0.46201,3895.0,3894.3,1.37983295]
[1761054066919,0.46201,3895.0,3893.9,5.43083295]
[1761054067115,0.46201,3895.0,3893.9,4.051]
[1761054067316,5.46201,3895.0,3893.6,1.37983295]
[1761054067520,5.46201,3895.0,3893.4,1.37983295]
[1761054067722,46.26201,3895.0,3893.0,1.37983295]
[1761054067930,41.26201,3895.0,3893.0,1.37983295]
[1761054068227,46.26201,3895.0,3892.9,1.37983295]
[1761054068430,2.31047,3894.3,3892.5,0.4623]
[1761054068738,2.31047,3894.3,3892.3,1.37983295]
[1761054068739,0.46223,3893.2,3892.8,0.46226]
[1761054069026,0.46223,3893.2,3892.9,0.46225]
[1761054069228,8.059,3894.7,3893.6,0.46217]
[1761054069423,0.9105663,3895.4,3894.1,0.46211]
[1761054069424,0.46207,3894.6,3894.1,0.46211]
[1761054069622,0.00314779,3894.6,3893.6,1.37983295]
[1761054069820,0.00314779,3894.6,3894.4,0.46207]
[1761054070031,0.00314779,3894.6,3893.7,1.15541]
[1761054070032,0.00314779,3894.6,3893.8,1.37983295]
[1761054070331,0.46213,3894.0,3893.5,1.37983295]
[1761054070628,0.46217,3893.7,3893.5,1.37983295]
[1761054070821,0.4622,3893.4,3893.2,1.37983295]
[1761054071021,0.4622,3893.4,3893.1,0.46223]
[1761054071221,0.46218,3893.6,3893.2,0.46222]
[1761054071434,0.46216,3893.8,3893.3,0.4622]
[1761054071728,1.1553,3894.1,3893.1,0.46223]
[1761054072126,1.15522,3894.4,3893.0,1.37983295]
[1761054072127,0.46216,3893.8,3893.0,1.37983295]
[1761054072328,1.15521,3894.4,3893.4,0.46219]
[1761054072526,1.15526,3894.2,3893.2,0.46222]
[1761054072718,40.80314779,3894.6,3893.0,1.37983295]
[1761054072922,0.46224,3893.1,3892.9,0.00280639]
[1761054073117,0.46224,3893.1,3892.9,0.69042707]
[1761054073629,0.46224,3893.1,3892.9,0.00280639]
[1761054074321,0.46224,3893.1,3892.9,6.39e-06]
[1761054074523,5.0,3893.0,3892.9,6.39e-06]
[1761054074833,0.46236,3892.1,3890.9,1.15011068]
[1761054075020,0.9105663,3893.5,3891.1,0.68762068]
[1761054075219,40.8,3892.7,3892.1,0.68762068]
[1761054075524,1.15524,3894.3,3891.7,1.37983295]
[1761054075525,1.15519,3894.5,3892.6,0.68762068]
[1761054075722,0.46228,3892.8,3892.6,0.68985959]
[1761054076032,40.8,3892.7,3892.6,0.00223891]
[1761054076629,45.8,3892.7,3892.6,0.00223891]
[1761054077019,40.8,3892.7,3892.6,0.00223891]
[1761054077426,45.8,3892.7,3892.6,0.00223891]
[1761054078127,40.8,3892.7,3892.6,0.00223891]
[1761054078323,50.339,3892.7,3892.6,0.00223891]
[1761054079025,55.339,3892.7,3892.6,0.00223891]
[1761054079334,50.339,3892.7,3892.6,0.00223891]
[1761054079539,55.339,3892.7,3892.6,0.00223891]
[1761054079827,40.8,3892.7,3892.6,0.00223891]
[1761054080029,50.35,3892.7,3892.6,0.00223891]
[1761054080221,55.35,3892.7,3892.6,0.00223891]
[1761054080829,50.35,3892.7,3892.6,0.00223891]
[1761054081437,40.8,3892.7,3892.6,0.00223891]
[1761054083235,45.8,3892.7,3892.6,0.00223891]
[1761054083829,0.4625,3890.9,3890.7,2.32962068]
[1761054084037,1.15606,3891.5,3890.5,0.46254]
[1761054084038,0.46252,3890.7,3890.5,0.68762068]
[1761054084332,0.46252,3890.7,3890.0,1.37983295]
[1761054084333,0.46256,3890.4,3890.1,0.68762068]
[1761054084535,0.46259,3890.1,3889.6,0.46264]
[1761054084738,0.46259,3890.1,3889.7,0.46263]
[1761054084739,0.46262,3889.9,3889.7,0.46263]
[1761054085040,0.46264,3889.7,3889.6,0.00199609]
[1761054085732,0.46282,3888.2,3887.8,0.02572149]
[1761054085936,0.46284,3888.0,3887.8,0.02572149]
[1761054086139,0.00265738,3890.1,3887.8,0.02572149]
[1761054086332,0.46285,3888.0,3887.8,0.02572149]
[1761054086732,0.46285,3888.0,3887.8,0.02811638]
[1761054088827,5.46285,3888.0,3887.8,6.38e-06]
[1761054089140,3.21901,3888.4,3885.1,0.68762068]
[1761054089141,1.15733,3887.3,3885.1,0.68762068]
[1761054089438,2.31412,3888.2,3885.0,21.25129195]
[1761054089439,0.46305,3886.3,3885.0,21.25129195]
[1761054089739,40.8,3886.2,3885.2,1.15794]
[1761054090036,40.80205022,3886.2,3885.2,0.00297389]
[1761054090245,0.46307,3886.1,3885.2,0.00297389]
[1761054090542,40.80205022,3886.2,3885.2,0.00297389]
[1761054090543,0.46308,3886.0,3885.4,0.46314]
[1761054090736,40.80205022,3886.2,3885.2,0.00297389]
[1761054091043,40.80205022,3886.2,3885.2,5.00297389]
[1761054091238,0.00205022,3886.2,3886.0,0.46307]
[1761054091837,0.00205022,3886.2,3886.1,5.0]
[1761054092243,0.46285,3888.0,3886.4,1.15757]
[1761054092537,0.87085,3888.0,3887.5,0.46289]
[1761054092737,0.87085,3888.0,3886.0,2.31539]
[1761054092738,0.46288,3887.7,3887.1,0.46294]
[1761054093135,0.46294,3887.2,3885.6,4.4428]
[1761054093334,0.46293,3887.3,3886.2,1.15763]
[1761054093538,0.46293,3887.3,3886.9,0.46297]
[1761054093842,0.46294,3887.2,3886.7,0.46299]
[1761054094039,0.46294,3887.2,3886.8,0.46298]
[1761054094241,0.46560978,3887.7,3887.1,0.46294]
[1761054094537,0.4629,3887.5,3887.0,0.46295]
[1761054094730,0.00272978,3887.7,3885.9,1.15772]
[1761054094937,1.15723,3887.6,3885.6,4.44281]
[1761054095140,1.15734,3887.3,3885.6,3.285]
[1761054095340,40.8,3887.5,3885.2,0.00297389]
[1761054095542,1.15757,3886.5,3885.2,0.00297389]
[1761054095842,0.4631,3885.8,3885.4,0.46314]
[1761054096243,10.71256,3886.5,3885.2,0.00297389]
[1761054096244,1.15761,3886.3,3885.2,0.00297389]
[1761054096441,9.555,3886.5,3885.2,0.00297389]
[1761054096442,0.46315,3885.4,3885.2,0.00297389]
[1761054096633,0.4632,3885.0,3883.2,0.295]
[1761054096836,0.46321,3884.9,3884.5,0.46324]
[1761054097045,0.46323,3884.8,3883.5,1.15843]
[1761054097238,0.46324,3884.7,3884.1,0.4633]
[1761054097440,0.46324,3884.7,3883.5,1.15844]
[1761054097644,0.00305987,3884.7,3884.5,0.46325]
[1761054098346,0.00305987,3884.7,3883.5,0.00314554]
[1761054098347,0.46325,3884.6,3884.1,0.46329]
[1761054098640,0.46326,3884.5,3883.6,1.15841]
[1761054098848,0.00305987,3884.7,3883.7,1.15838]
[1761054099444,0.00305987,3884.7,3884.5,0.46325]
[1761054099638,0.46327,3884.4,3883.5,0.45718136]
[1761054099834,0.00305987,3884.7,3883.5,0.45718136]
[1761054100248,0.4633,3884.2,3883.5,0.00314554]
[1761054100434,0.00305987,3884.7,3883.5,0.00314554]
[1761054100435,0.46327,3884.4,3883.5,0.00314554]
[1761054100634,0.00305987,3884.7,3883.7,0.46335]
[1761054101048,0.46333,3883.9,3883.5,0.00314554]
[1761054101243,0.00305987,3884.7,3883.5,0.00314554]
[1761054101244,0.46335,3883.7,3883.5,0.00314554]
[1761054101554,1.15815,3884.5,3883.5,0.00314554]
[1761054101737,0.46336,3883.7,3883.5,0.00314554]
[1761054102641,0.46336,3883.7,3883.5,5.54e-06]
[1761054102846,5.0,3883.6,3883.5,5.54e-06]
[1761054103241,45.8,3883.6,3883.5,5.54e-06]
[1761054103546,40.8,3883.6,3883.5,5.54e-06]
[1761054103748,0.46332,3884.0,3883.6,0.46336]
[1761054103946,0.46333,3883.9,3883.6,0.46336]
[1761054104139,0.46334,3883.8,3883.5,5.54e-06]
[1761054104339,9.553,3884.2,3883.5,5.54e-06]
[1761054104340,0.46335,3883.7,3883.5,5.54e-06]
[1761054104741,0.46332,3884.0,3883.7,0.46335]
[1761054104938,40.8,3884.2,3883.5,5.54e-06]
[1761054105144,0.46331,3884.1,3883.5,5.54e-06]
[1761054105340,40.8,3884.2,3884.0,0.46331]
[1761054105549,1.1578,3885.7,3884.5,0.46325]
[1761054105850,0.75,3885.1,3883.5,5.54e-06]
[1761054106158,0.46333,3883.9,3883.6,0.46335]
[1761054106349,0.46333,3883.9,3883.7,0.46335]
[1761054106654,0.46336,3883.7,3883.5,5.54e-06]
[1761054108953,40.8,3884.2,3883.5,5.54e-06]
[1761054109253,0.46335,3883.7,3883.5,5.54e-06]
[1761054109453,40.8,3884.2,3883.6,0.46336]
[1761054109754,9.558,3884.5,3884.0,0.46331]
[1761054109951,0.00305987,3884.7,3884.5,0.46325]
[1761054110638,0.00305987,3884.7,3884.5,5.46325]
[1761054110843,0.46326,3884.5,3883.6,1.15841]
[1761054111052,0.00305987,3884.7,3883.5,5.54e-06]
[1761054111053,0.46327,3884.4,3884.1,0.4633]
[1761054111243,0.00305987,3884.7,3883.5,5.54e-06]
[1761054111448,0.46331,3884.1,3883.9,0.46332]
[1761054111746,1.15815,3884.5,3883.7,0.46335]
[1761054111950,0.46335,3883.8,3883.5,5.54e-06]
[1761054112150,0.46335,3883.8,3883.6,0.46336]
[1761054112451,0.46333,3884.0,3883.5,5.54e-06]
[1761054112654,0.46333,3883.9,3883.7,0.46334]
[1761054112850,0.46333,3883.9,3883.7,0.46335]
[1761054113148,9.57,3884.6,3883.7,0.46335]
[1761054113353,0.46328,3884.3,3883.9,0.46332]
[1761054113555,0.46333,3883.9,3883.5,5.54e-06]
[1761054113954,0.46332,3884.0,3883.7,0.46334]
[1761054114154,0.46333,3883.9,3883.7,0.46334]
[1761054114349,0.46336,3883.6,3883.5,5.54e-06]
[1761054115349,41.26336,3883.6,3883.5,5.54e-06]
[1761054116360,46.26336,3883.6,3883.5,5.54e-06]
[1761054117460,41.26336,3883.6,3883.5,5.54e-06]
[1761054120456,46.26336,3883.6,3883.5,5.54e-06]
[1761054121155,46.26336,3883.6,3882.8,0.02575461]
[1761054121156,0.46345,3882.9,3882.8,1.5e-07]
[1761054121358,0.46361,3881.5,3881.3,0.68762068]
[1761054121550,0.46366,3881.1,3881.0,0.68762068]
[1761054121749,0.46366,3881.1,3880.8,0.68762068]
[1761054121957,0.46369,3880.9,3880.7,0.68762068]
[1761054122258,0.4637,3880.8,3880.7,0.00209107]
[1761054123155,0.0031004,3880.9,3880.7,0.46580107]
[1761054123566,0.0031004,3880.9,3880.7,0.00209107]
[1761054123763,9.573,3880.8,3880.7,0.00209107]
[1761054125364,50.373,3880.8,3880.7,0.00209107]
[1761054125662,55.373,3880.8,3880.7,0.00209107]
[1761054126067,50.374,3880.8,3880.7,0.00209107]
[1761054126762,55.374,3880.8,3880.7,0.00209107]
[1761054126949,50.374,3880.8,3880.7,0.00209107]
[1761054127149,50.6943,3880.8,3880.7,0.00209107]
[1761054128365,50.6913,3880.8,3880.7,0.00209107]
[1761054129060,1.15929,3880.7,3879.5,0.68762068]
[1761054129261,0.46388,3879.3,3879.1,0.91414705]
[1761054129465,0.3203,3878.9,3878.6,0.1874]
[1761054129857,0.60242,3879.0,3878.3,0.1874]
[1761054129858,0.78424,3878.8,3878.3,0.1874]
[1761054130055,0.4588,3878.5,3878.4,0.46398]
[1761054130468,0.3203,3878.4,3878.3,0.00334712]
[1761054130958,0.3203,3877.9,3877.8,0.02578782]
[1761054131163,50.6973,3877.9,3877.8,0.68054782]
[1761054131366,0.3203,3878.1,3878.0,0.65473]
[1761054131565,0.3203,3878.4,3878.3,0.1907]
[1761054131768,41.1235757,3878.4,3878.3,0.00302921]
[1761054132856,0.78434,3877.9,3877.8,0.02578782]
[1761054133064,10.36334,3877.9,3877.8,0.02578782]
[1761054133254,0.3203,3877.9,3877.8,0.02578782]
[1761054133455,9.9003,3877.9,3877.8,0.02578782]
[1761054133654,0.3203,3878.2,3877.8,0.48983782]
[1761054133963,9.5852757,3878.4,3877.8,0.02899626]
[1761054133964,0.3203,3877.9,3877.8,0.02899626]
[1761054134359,9.9103,3877.9,3877.8,0.02899626]
[1761054135054,9.9103,3877.9,3876.2,0.46424]
[1761054135055,0.3203,3876.4,3876.2,0.46424]
[1761054135356,0.3203,3876.7,3876.1,0.2228]
[1761054135660,0.3203,3876.9,3876.3,0.2228]
[1761054135859,0.3203,3876.9,3876.8,0.2228]
[1761054136061,0.3203,3876.9,3876.8,0.00271446]
[1761054137166,9.9233,3876.9,3876.8,0.00271446]
[1761054137555,0.3203,3876.9,3876.8,0.00271446]
[1761054138857,0.3203,3876.9,3876.8,0.22451446]
[1761054139063,0.3203,3876.9,3876.8,0.00271446]
[1761054139867,0.78446,3876.9,3876.8,0.00271446]
[1761054140464,0.3203,3876.9,3876.8,5.22451446]
[1761054141263,0.1385,3877.5,3876.8,5.22451446]
[1761054141264,0.3176,3877.4,3876.8,5.22451446]
[1761054141460,0.3176,3877.4,3877.3,0.2218]
[1761054141664,0.4641,3877.4,3877.1,0.46413]
[1761054141855,0.3176,3877.3,3877.1,0.46413]
[1761054142062,0.3176,3877.3,3877.1,0.68593]
[1761054142469,0.3176,3877.3,3877.2,0.2218]
[1761054143163,0.3176,3876.9,3876.8,0.00271446]
[1761054143769,0.3176,3876.9,3876.8,0.22451446]
[1761054143961,0.1385,3877.5,3876.9,0.2218]
[1761054143962,0.3176,3877.2,3876.9,0.2218]
[1761054144162,0.3176,3877.2,3877.1,0.46413]
[1761054144564,0.3176,3876.9,3876.8,0.00271446]
[1761054144966,0.3176,3876.9,3876.8,0.22451446]
[1761054145162,0.1385,3877.5,3877.4,0.4641]
[1761054145474,0.1385,3877.5,3876.8,0.00271446]
[1761054145666,0.4562,3877.0,3876.9,0.46416]
[1761054146161,0.3176,3876.9,3876.8,0.00271446]
[1761054146365,0.3176,3876.9,3876.8,0.68868446]
[1761054146564,0.1385,3877.5,3877.4,0.4641]
[1761054146968,40.9385,3878.0,3877.4,5.0]
[1761054147167,0.4562,3877.5,3877.4,0.46408]
[1761054147666,0.7817,3877.4,3876.8,1.38494446]
[1761054147868,0.3176,3877.3,3877.1,0.46413]
[1761054148874,0.3176,3877.3,3877.1,0.68593]
[1761054149074,0.3176,3877.3,3877.1,0.46413]
[1761054149572,0.3176,3877.3,3877.1,0.68593]
[1761054149767,0.3176,3877.3,3877.1,0.46413]
[1761054149972,0.3176,3876.9,3876.8,0.46688446]
[1761054150368,0.3176,3876.9,3876.8,0.00271446]
[1761054151765,5.3176,3876.9,3876.8,0.00271446]
[1761054151964,0.46429,3875.8,3875.7,0.68805259]
[1761054152167,0.3488,3875.7,3875.6,0.68805259]
[1761054152874,0.3488,3875.7,3875.6,0.00227244]
[1761054153575,5.3488,3875.7,3875.6,0.00227244]
[1761054153874,0.3488,3874.8,3874.6,0.68805259]
[1761054154071,0.3488,3874.8,3874.6,1.15248259]
[1761054154262,0.3488,3875.2,3874.8,0.46441]
[1761054154462,0.3488,3875.2,3875.1,1.37962259]
[1761054154661,0.3488,3875.5,3875.4,0.46434]
[1761054154864,0.5994209,3875.5,3875.4,0.68971819]
[1761054155065,0.46435,3875.3,3875.2,0.68971819]
[1761054155274,0.46435,3875.3,3875.1,0.69279424]
[1761054155463,0.3488,3875.2,3875.1,0.00307605]
[1761054155659,41.1488,3875.2,3875.1,0.00307605]
[1761054156063,41.1488,3875.2,3873.9,1.84955327]
[1761054156064,0.94584,3874.5,3874.4,0.68971819]
[1761054156266,0.3488,3873.9,3873.8,0.68971819]
[1761054156465,0.3488,3873.9,3873.1,0.2272]
[1761054156466,0.3488,3873.7,3873.5,0.68971819]
[1761054156771,0.3488,3874.2,3874.0,0.46449]
[1761054156970,0.3488,3874.3,3874.0,1.15421819]
[1761054157176,0.3488,3874.3,3874.0,1.15653447]
[1761054157375,0.3488,3874.3,3874.1,0.46448]
[1761054157563,0.3488,3874.3,3874.2,0.2272]
[1761054157968,0.3488,3874.7,3874.6,0.69163]
[1761054158270,0.3488,3874.7,3874.6,0.46443]
[1761054158468,0.3488,3874.7,3874.5,0.68992566]
[1761054158774,0.4814,3874.5,3874.4,0.68992566]
[1761054158974,0.3488,3874.8,3874.7,0.69162]
[1761054159166,0.3488,3874.8,3874.7,1.38190082]
[1761054159363,0.3488,3874.8,3874.7,1.60576705]
[1761054159770,0.3488,3875.3,3875.0,0.2272]
[1761054160076,0.0025009,3875.5,3875.4,0.69154]
[1761054160371,0.4839009,3875.5,3875.4,1.84504038]
[1761054160570,0.3488,3875.4,3875.2,1.84506038]
[1761054161074,0.0025009,3875.5,3875.4,0.69154]
[1761054161278,0.0025009,3875.5,3875.4,2.07224038]
[1761054161479,0.3513009,3875.5,3875.4,2.07224038]
[1761054161671,0.0025009,3875.5,3875.4,7.07224038]
[1761054161871,0.3488,3876.2,3876.1,0.46425]
[1761054162177,0.3488,3876.2,3876.1,1.38218918]
[1761054162372,0.1326,3876.5,3876.4,0.46422]
[1761054162675,0.1326,3877.0,3876.8,0.46416]
[1761054162974,0.3488,3876.9,3876.8,1.15695559]
[1761054163179,0.3488,3876.9,3876.8,0.46605062]
[1761054163475,0.3488,3876.9,3876.8,0.00189062]
[1761054165481,0.81296,3876.9,3876.8,0.00189062]
[1761054165976,5.81296,3876.9,3876.8,0.00189062]
[1761054166176,0.1326,3876.0,3875.9,0.69102165]
[1761054166380,0.3488,3875.8,3875.3,0.69102165]
[1761054166578,0.81315,3875.3,3875.2,0.69102165]
[1761054166775,0.81315,3875.3,3875.0,0.92120663]
[1761054166776,0.3488,3875.2,3875.1,0.69102165]
[1761054167090,0.3488,3875.2,3875.1,0.00224028]
[1761054167274,0.3488,3875.2,3875.1,0.69364271]
[1761054167584,0.3488,3875.2,3875.1,0.00224028]
[1761054167585,5.3488,3875.2,3875.1,0.00224028]
[1761054168276,0.1326,3874.5,3874.3,0.69140243]
[1761054168483,0.1326,3874.5,3874.1,0.69140243]
[1761054168779,0.81328,3874.2,3874.1,0.69140243]
[1761054169373,0.35168261,3874.2,3874.1,1.15589243]
[1761054169577,0.3488,3874.6,3874.4,0.2313]
[1761054169781,0.3488,3874.4,3874.2,0.69082166]
[1761054169975,0.3488,3874.4,3874.2,0.46448]
[1761054170178,0.3488,3874.7,3874.6,0.222]
[1761054170380,0.3488,3874.7,3874.6,0.90403]
[1761054170580,0.35207098,3874.7,3874.6,0.90403]
[1761054170776,0.00327098,3874.7,3874.6,1.13533]
[1761054171082,0.56817098,3874.7,3874.6,1.59456991]
[1761054171483,0.1326,3875.5,3875.3,0.222]
[1761054171484,0.3488,3875.4,3875.3,0.222]
[1761054171682,1.16045,3876.8,3875.3,0.222]
[1761054171683,0.46424,3876.2,3875.3,0.3166]
[1761054171984,0.46425,3876.1,3875.8,0.46428]
[1761054172180,9.7656,3877.0,3875.4,0.69039062]
[1761054172181,0.1326,3876.0,3875.4,0.69039062]
[1761054172388,0.1326,3875.5,3875.4,0.69039062]
[1761054172776,0.13563102,3876.0,3875.4,0.3166]
[1761054173085,0.13563102,3876.0,3875.5,0.3166]
[1761054173283,0.4643,3875.7,3875.6,0.3166]
[1761054173585,0.4643,3875.7,3875.5,0.46431]
[1761054173884,0.00303102,3876.0,3875.9,0.78088]
[1761054174083,0.35183102,3876.0,3875.9,0.92069604]
[1761054174387,0.81308,3875.9,3875.7,0.6907317]
[1761054174583,0.3488,3875.8,3875.7,0.6907317]
[1761054174786,0.3488,3875.8,3875.7,1.0073317]
[1761054174983,0.00303102,3876.0,3875.7,1.0073317]
[1761054174984,0.00303102,3876.0,3875.9,0.78088]
[1761054175178,0.35183102,3876.0,3875.9,1.00734688]
[1761054175875,0.46729102,3876.0,3875.9,0.69074688]
[1761054176382,0.00303102,3876.0,3875.8,0.46428]
[1761054176585,0.00303102,3876.0,3875.8,1.84575836]
[1761054176782,9.632,3877.2,3876.2,0.46424]
[1761054176983,9.632,3877.2,3876.4,0.6909278]
[1761054176984,0.46421,3876.5,3876.4,0.6909278]
[1761054177183,0.46421,3876.5,3876.3,0.6909278]
[1761054177784,0.00329452,3876.5,3876.2,0.6909278]
[1761054177983,0.00329452,3876.5,3876.3,1.1551478]
[1761054178184,0.46750452,3876.5,3876.3,1.1551478]
[1761054178587,0.46423,3876.3,3876.2,0.6909278]
[1761054178785,0.00329452,3876.5,3876.2,0.46424]
[1761054178786,0.46422,3876.4,3876.2,0.46424]
[1761054178982,0.46422,3876.4,3876.2,0.69146803]
[1761054179183,0.46750452,3876.5,3876.3,1.15568803]
[1761054179387,0.00329452,3876.5,3876.3,1.15568803]
[1761054179692,0.00329452,3876.5,3876.3,1.38545707]
[1761054179884,0.00329452,3876.5,3876.4,0.92123707]
[1761054180486,5.00329452,3876.5,3875.4,0.15933081]
[1761054180790,0.46436,3875.2,3875.0,0.92123707]
[1761054180988,0.46438,3875.1,3874.9,1.38562707]
[1761054181489,1.16056,3876.4,3875.1,1.16093]
[1761054181685,0.00329452,3876.5,3875.8,0.92319801]
[1761054181888,0.00329452,3876.5,3876.1,0.92319801]
[1761054182084,0.00329452,3876.5,3876.3,0.46423]
[1761054182391,0.00329452,3876.5,3876.2,1.38743801]
[1761054182593,0.00329452,3876.5,3876.2,0.92319801]
[1761054183098,0.46424,3876.2,3876.1,0.92319801]
[1761054183393,0.46424,3876.2,3876.0,1.38745801]
[1761054183593,0.00329452,3876.5,3876.2,0.46424]
[1761054183796,0.00329452,3876.5,3876.3,0.46423]
[1761054184692,0.46423,3876.4,3876.2,0.46423]
[1761054184894,0.00329452,3876.5,3876.4,0.46422]
[1761054185194,0.00329452,3876.5,3876.2,1.38742801]
[1761054185195,0.46749452,3876.5,3876.2,1.38742801]
[1761054185382,0.00329452,3876.5,3876.2,0.46424]
[1761054185583,0.46423,3876.3,3876.2,0.46424]
[1761054185790,0.00329452,3876.5,3876.4,0.46422]
[1761054186189,0.00329452,3876.5,3876.3,0.92319801]
[1761054186390,0.46423,3876.3,3876.2,1.38742801]
[1761054186585,0.00329452,3876.5,3876.1,0.92319801]
[1761054186794,0.46423,3876.3,3876.2,0.46424]
[1761054186986,0.46424,3876.2,3876.1,0.92319801]
[1761054187392,1.16055,3876.4,3875.8,0.92338427]
[1761054187594,0.46428,3875.9,3875.8,0.92338427]
[1761054188598,0.46425,3876.1,3876.0,0.46426]
[1761054188900,0.00329452,3876.5,3875.9,0.92362362]
[1761054188901,0.46426,3876.0,3875.9,0.92362362]
[1761054189290,0.46428,3875.9,3875.8,0.92362362]
[1761054189601,0.4643,3875.7,3875.6,0.92362362]
[1761054190297,0.4643,3875.8,3875.5,1.84616561]
[1761054190501,1.16073,3875.8,3875.4,0.92383334]
[1761054190696,1.16071,3875.9,3874.9,0.92383334]
[1761054190697,1.16088,3875.3,3874.9,0.92383334]
[1761054191005,0.46443,3874.6,3874.5,0.92383334]
[1761054191203,0.46443,3874.6,3874.4,0.92383334]
[1761054191385,0.46448,3874.2,3874.1,0.92691066]
[1761054191591,0.46448,3874.2,3874.1,0.00307732]
[1761054193294,5.46448,3874.2,3874.1,0.00307732]
[1761054193791,46.26448,3874.2,3874.1,0.00307732]
[1761054193987,0.4646,3873.2,3873.1,0.92383334]
[1761054194192,0.4646,3873.2,3873.0,0.92383334]
[1761054194389,0.46465,3872.8,3872.7,0.92383334]
[1761054194592,0.4647,3872.4,3872.1,0.92383334]
[1761054194800,0.46472,3872.3,3872.1,0.92383334]
[1761054194994,0.46473,3872.2,3872.0,0.92383334]
[1761054195307,0.46473,3872.2,3872.1,0.00241899]
[1761054196690,0.46472,3872.2,3872.1,0.00241899]
[1761054197598,5.46472,3872.2,3872.1,0.00241899]
[1761054197793,5.46472,3872.2,3870.1,1.84955327]
[1761054197794,5.0,3872.2,3870.3,0.92383334]
[1761054197993,1.16196,3871.7,3870.4,0.46493]
[1761054198193,0.46488,3870.9,3870.5,0.46492]
[1761054198389,0.46489,3870.8,3870.4,0.46493]
[1761054198597,0.46489,3870.8,3870.3,0.46494]
[1761054198795,40.8,3871.6,3870.3,0.00285637]
[1761054198989,9.609,3873.0,3870.5,4.27331791]
[1761054199295,0.46465,3872.8,3871.1,1.16213]
[1761054199494,9.609,3873.0,3871.8,0.46477]
[1761054199697,0.46690878,3872.3,3871.5,0.4648]
[1761054199896,0.00219878,3872.3,3871.1,1.16213]
[1761054200097,0.00219878,3872.3,3872.0,0.46474]
[1761054200499,0.00219878,3872.3,3872.1,0.46472]
[1761054200996,0.00219878,3872.3,3871.3,3.41845674]
[1761054201198,0.00219878,3872.3,3872.1,0.46472]
[1761054201997,2.27641575,3876.3,3872.1,0.46472]
[1761054201998,0.46455,3873.7,3872.2,5.0]
[1761054202198,1.16115,3874.4,3872.4,0.46469]
[1761054202400,1.195,3874.5,3872.3,0.4647]
[1761054202401,0.46463,3873.0,3872.3,0.4647]
[1761054202606,1.195,3874.5,3871.6,9.606]
[1761054202820,0.46466,3872.7,3872.2,0.46471]
[1761054203102,0.46462,3873.1,3871.8,1.16191]
[1761054203295,3.059,3873.4,3871.6,9.606]
[1761054203601,0.00230964,3874.5,3871.6,9.606]
[1761054203804,1.16115,3874.4,3872.6,0.46467]
[1761054204100,0.46464,3872.9,3871.7,3.40424142]
[1761054204289,1.16127,3874.0,3871.3,1.38185561]
[1761054204290,1.16146,3873.4,3871.3,0.92383334]
[1761054204490,0.46471,3872.4,3872.0,0.46474]
[1761054204700,0.46474,3872.1,3871.7,0.46477]
[1761054205107,0.46474,3872.1,3871.6,0.46479]
[1761054205405,0.3421,3872.0,3871.8,0.3486]
[1761054205697,0.46473,3872.2,3871.8,0.3486]
[1761054205904,0.3421,3872.1,3871.8,0.3486]
[1761054206102,0.80684,3872.1,3871.8,0.46476]
[1761054206312,0.80684,3872.1,3871.9,0.3486]
[1761054206496,0.3421,3872.0,3871.9,0.3486]
[1761054207097,0.80681,3872.3,3872.1,0.3486]
[1761054207306,0.3421,3872.2,3872.1,0.3486]
[1761054208216,0.4647,3872.4,3872.3,0.3486]
[1761054208501,0.3421,3872.2,3872.1,0.3486]
[1761054209008,0.3421,3872.5,3872.4,0.3486]
[1761054209307,0.3421,3873.0,3872.8,0.46464]
[1761054209508,0.80675,3872.8,3872.6,0.3486]
[1761054209807,0.3421,3872.7,3872.6,0.3486]
[1761054210013,0.3421,3872.7,3872.5,0.46468]
[1761054210212,0.3421,3872.7,3872.5,0.81328]
[1761054210509,0.3421,3872.8,3872.6,0.46466]
[1761054210808,0.3421,3872.8,3872.6,0.81326]
[1761054211210,0.3421,3872.7,3872.4,0.3486]
[1761054211409,0.1389,3873.0,3872.2,0.81331]
[1761054211410,0.3421,3872.5,3872.2,0.81331]
[1761054211709,0.3421,3872.1,3871.6,0.3486]
[1761054211910,0.3421,3872.1,3872.0,0.81334]
[1761054212104,0.46466,3872.7,3872.1,0.3486]
[1761054212308,0.80676,3872.7,3872.6,0.3486]
[1761054213012,0.80676,3872.7,3872.5,0.46468]
[1761054213210,0.3421,3872.6,3872.1,0.3486]
[1761054213511,0.3421,3872.3,3872.2,0.81331]
[1761054214106,0.80674,3872.9,3872.8,0.3486]
[1761054214308,0.3421,3872.9,3872.8,0.3486]
[1761054214518,0.46463,3873.0,3872.8,0.3486]
[1761054214707,0.80673,3873.0,3872.8,0.3486]
[1761054215108,0.3421,3872.9,3872.8,0.3486]
[1761054215307,0.3421,3872.7,3872.6,0.81327]
[1761054215510,50.397,3873.4,3872.8,0.81325]
[1761054215511,0.3421,3872.9,3872.8,0.81325]
[1761054215812,0.80669,3873.3,3873.2,0.3486]
[1761054216008,0.80669,3873.3,3873.2,0.00227245]
[1761054216209,0.1389,3873.5,3873.2,0.00227245]
[1761054216418,0.1389,3873.5,3873.2,0.35087245]
[1761054216419,0.80669,3873.3,3873.2,0.35087245]
[1761054216618,0.80669,3873.3,3873.2,0.00227245]
[1761054216917,0.3421,3871.8,3871.7,0.92383334]